Workbook

Sheet The Circle
E2: N5 Lifeskills - Circle Practice Created by Mr.Lafferty@mathsrevision.com
E7: Q1. Find the area of the circle given the radius opposite.
K11: cm2 ( 2 decimal places ) | AS11: =ROUND(PI()*AC13*AC13,2) -> 153.94
AC13: =ROUND(RAND()*(20-2)+2,0) -> 7 | AD13: cm
F14: (b) Find the circumference of the circle.
K17: cm ( 2 decimal places ) | AS17: =ROUND(PI()*AC13*2,2) -> 43.98
E22: Q2. Find the area of the circle given the diameter opposite.
K25: cm2 ( 2 decimal places ) | AD25: =ROUND(RAND()*(20-2)+2,0) -> 14 | AF25: mm | AS25: =ROUND(PI()*POWER(AD25/2,2),2) -> 153.94
F28: (b) Find the circumference of the circle.
K30: cm ( 2 decimal places ) | AS30: =ROUND(PI()*AD25,2) -> 43.98
E35: Q3. The circle has area | M35: =AS35 -> 15393.8 | Q35: m2 | AS35: =ROUND(PI()*AT35*AT35,2) -> 15393.8 | AT35: =ROUND(RAND()*(100-2)+2,0) -> 70
F37: (a) Find the radius of the blade.
K39: m (nearest whole number) | AS39: =AT35 -> 70
F43: (b) Find the diameter of the circle.
K45: cm (nearest whole number) | AS45: =2*AS39 -> 140
E50: Q4. A table is in the shape of a circle.
G52: The circumference is | N52: =AS52 -> 9113.76 | R52: mm . Find the diameter. | AS52: =ROUND(PI()*AS54,2) -> 9113.76
K54: mm ( nearest whole number ) | AS54: =ROUND(RAND()*(3000-1000)+1000,0) -> 2901
F58: (b) Find the radius of the table.
K60: mm (to 1 decimal place) | AS60: =AS54/2 -> 1450.5
E64: Q5. A security beam is in the shape of a semi-circle.
F66: Find the area of the beam.
K68: cm2 ( 2 decimal places ) | AS68: =ROUND(PI()*POWER(AC70/2,2)/2,2) -> 141.76
AC70: =ROUND(RAND()*(50-9)+9,0) -> 19 | AD70: cm
F71: (b) Find the circumference of the beam. | AS71: =ROUND(PI()*AC70/2,2) -> 29.85
AS72: =AC70 -> 19
K74: cm ( 2 decimal places ) | AS74: =AS72+AS71 -> 48.85
E78: Q6. A fan is in the shape of a quarter circle.
F80: Find the area of the fan.
K82: cm2 ( 2 decimal places ) | AS82: =ROUND(PI()*POWER(AC84,2)/4,2) -> 314.16
AC84: =ROUND(RAND()*(50-9)+9,0) -> 20 | AD84: cm
F85: (b) Find the circumference of the fan. | AS85: =ROUND(PI()*2*AC84/4,2) -> 31.42
AS86: =2*AC84 -> 40
K88: cm ( 2 decimal places ) | AS88: =AS86+AS85 -> 71.42
E92: Q7. A flower bed is the shape of a circle with a quarter removed.
F94: Find the area of the flower bed.
K96: m2 ( 2 decimal places ) | AS96: =ROUND(PI()*POWER(AC98,2)*3/4,2) -> 1847.26
AC98: =ROUND(RAND()*(50-9)+9,0) -> 28 | AD98: m
F99: (b) Find the circumference of the flower bed. | AS99: =ROUND(PI()*2*AC98*3/4,2) -> 131.95
AS100: =2*AC98 -> 56
K102: m ( 2 decimal places ) | AS102: =AS100+AS99 -> 187.95
